Cogmind - Beta 14 *** ADVENTURER MODE // 2024.10.16 @ 20:24:34 Player: Three_crows Result: Destroyed by G-47 Trooper with Particle Gun Performance ------------- Evolutions (2) 1000 Regions Visited (3) 600 Robots Destroyed (25) 125 Value Destroyed (665) 665 Prototype IDs (0) 0 Alien Tech Used (0) 0 Bonus (0) 0 TOTAL SCORE: 2390 Bonus ------- None Cogmind --------- Core Integrity 0/550 Matter 300/300 Energy 90/100 System Corruption 0% Temperature Cool (9) Movement Core (400) Ox7 Location -8/Materials Parts ------- > --- POWER (2) -------- (None) > --- PROPULSION (3) --- (None) > --- UTILITY (3) ------ Large Storage Unit ECM Suite > --- WEAPON (3) ------- (None) > --- INVENTORY (15) --- Light Ion Engine Heat Sink Energy Filter Energy Filter Particle Charger Reflective Plating Reflective Plating EM Pulse Cannon Datajack Peak State ------------ > --- POWER ------------ Improved Ion Engine Deuterium Engine > --- PROPULSION ------- Aluminum Leg Aluminum Leg > --- UTILITY ---------- Large Storage Unit Trap Scanner ECM Suite > --- WEAPON ----------- Beam Rifle Light Assault Rifle Light Assault Rifle > --- INVENTORY -------- Light Ion Engine Heat Sink Particle Charger Reflective Plating Reflective Plating EM Pulse Cannon Datajack [Rating: 17] Favorites ----------- Power Light Ion Engine Engine Light Ion Engine Propulsion Aluminum Leg Leg Aluminum Leg Utility Large Storage Unit Device ECM Suite Storage Large Storage Unit Weapon Light Assault Rifle Energy Gun Beam Rifle Energy Cannon EM Pulse Cannon Ballistic Gun Light Assault Rifle Special Melee Weapon Datajack Build | -11 -10 -9 -8 ------- Run | Yrd Mat Mat Mat Slots Evolved 4 | . . 2 2 Power 1 | . . 1 . Propulsion 1 | . . . 1 Utility 1 | . . 1 . Weapon 1 | . . . 1 Parts Attached 25 | 6 7 6 6 Power 6 | 1 1 2 2 Engine 6 | 1 1 2 2 Core . | . . . . Reactor . | . . . . Propulsion 5 | 2 1 . 2 Treads . | . . . . Leg 5 | 2 1 . 2 Wheel . | . . . . Hover . | . . . . Flight . | . . . . Utility 6 | 1 2 2 1 Device 3 | . . 2 1 Storage 3 | 1 2 . . Processor . | . . . . Hackware . | . . . . Protection . | . . . . Artifact . | . . . . Weapon 8 | 2 3 2 1 Energy Gun 2 | 1 . . 1 Energy Cannon 1 | . . 1 . Ballistic Gun 4 | 1 2 1 . Ballistic Cannon . | . . . . Launcher . | . . . . Special Weapon . | . . . . Impact Weapon . | . . . . Slashing Weapon . | . . . . Piercing Weapon . | . . . . Special Melee Weapon 1 | . 1 . . Unidentified Prototypes . | . . . . Parts Lost 15 | . 2 4 9 Power 5 | . 1 2 2 Propulsion 4 | . . 1 3 Utility 1 | . . . 1 Weapon 5 | . 1 1 3 Highest Loss Streak 7 | . 2 2 7 To Critical Strikes . | . . . . Average Slot Usage (%) 75 | . 82 75 69 Engine 13 | . 13 12 15 Leg 16 | . 28 16 7 Device 11 | . . 13 17 Storage 11 | . 14 11 9 Energy Gun 3 | . 4 . 6 Energy Cannon 1 | . . 2 . Ballistic Gun 14 | . 16 13 13 Special Melee Weapon 3 | . 4 5 . Peak Build Rating 17 | 6 7 13 17 Average Rating 9 | 4 5 9 14 On Entrance 6 | . 6 6 12 Naked Turns . | . . . . Heaviest Build 46 | 11 46 39 45 Greatest Support 20 | 20 20 20 20 Greatest Overweight (x) 14 | . 2 3 14 Average Overweight (x) 1 | . . 1 5 Largest Inventory Capacity 15 | 8 15 15 15 Average Capacity 14 | 6 14 15 15 Most Carried 9 | 1 2 9 9 Average Carried 5 | . 1 5 7 Final Capacity 15 | 8 15 15 15 Final Carried 9 | 1 2 9 9 Class Distribution -------------------- 75% | Mutant 15% | Skirmisher 6% | Scavenger-Mutant Dominant Class ---------------- Mutant | -10/Materials Mutant | -9/Materials Skirmisher | -8/Materials Resources | -11 -10 -9 -8 ----------- Run | Yrd Mat Mat Mat Matter Collected 512 | 100 17 303 92 Remotely . | . . . . Salvage Created 844 | . 236 325 283 Parts 58 | . 14 24 20 Haulers Intercepted . | . . . . Recyclers Shooed . | . . . . Parts Field Recycled . | . . . . Retrieved Matter . | . . . . Parts Self-Destructed . | . . . . Prevented . | . . . . Kills | -11 -10 -9 -8 ------- Run | Yrd Mat Mat Mat Combat Hostiles Destroyed 23 | . 7 9 7 Guns 20 | . 6 7 7 Cannons 2 | . . 2 . AOE 1 | . 1 . . Classes Destroyed 5 | . 3 1 1 Worker 1 | . 1 . . Watcher 1 | . . . 1 Swarmer 10 | . 3 4 3 Grunt 8 | . 4 1 3 Sentry 5 | . . 4 1 Best Kill Streak 6 | . 6 6 5 Combat Bots Only 6 | . 4 6 4 Max Kills in Single Turn 2 | . 1 1 2 Gunslinging . | . . . . Exploded 1 | . 1 . . Melee . | . . . . Uniques/NPCs Destroyed . | . . . . Combat | -11 -10 -9 -8 -------- Run | Yrd Mat Mat Mat Hostile Shots Fired 239 | . 59 56 124 Missed 57 | . 12 19 26 Damage Taken 1802 | . 336 346 1120 Core 702 | . 76 73 553 Absorbed by Shields . | . . . . Ignored by Resistances 531 | . 107 100 324 Core Remaining (%) 83 | 100 69 81 . Volleys Fired 91 | . 24 39 28 Largest 3 | . 2 2 3 Hottest 96 | . 60 83 96 Shots Fired 140 | . 36 44 60 Gun 135 | . 36 39 60 Cannon 5 | . . 5 . Launcher . | . . . . Special . | . . . . Kinetic 105 | . 26 39 40 Thermal 20 | . . . 20 Explosive . | . . . . Electromagnetic 15 | . 10 5 . Robot Hit Streak 21 | . 9 10 21 Robot Miss Streak 2 | . 1 2 2 Penetration Max . | . . . . Secondary Targets 3 | . 2 . 1 Max Gunslinging Chain 1 | . 1 . 1 Shots Hit Robots 112 | . 28 35 49 Core Hits 51 | . 12 17 22 Critical Kills . | . . . . Critical Parts Destroyed . | . . . . Critical Strikes 5 | . . 2 3 Burn 3 | . . . 3 Destroy 1 | . . 1 . Corrupt 1 | . . 1 . Melee Attacks 3 | . 2 1 . Impact . | . . . . Slashing . | . . . . Piercing . | . . . . Sneak Attacks 2 | . 1 1 . Combat Hostiles . | . . . . Follow-up Attacks . | . . . . Damage Inflicted 1238 | . 356 317 565 Guns 1061 | . 261 247 553 Cannons 70 | . . 70 . Explosions 95 | . 95 . . Melee . | . . . . Ramming 12 | . . . 12 Kinetic 676 | . 137 247 292 Thermal 356 | . 95 . 261 Explosive . | . . . . Electromagnetic 194 | . 124 70 . Impact . | . . . . Slashing . | . . . . Piercing . | . . . . Highest Corruption . | . . . . Average Corruption . | . . . . Corruption Purged . | . . . . Corruption Blocked . | . . . . Overload Shots . | . . . . Overflow Damage 8 | . 8 . . Projectiles . | . . . . Explosions 8 | . 8 . . Melee . | . . . . Knockbacks . | . . . . Impact . | . . . . Kinetic . | . . . . Secondary . | . . . . Self-Inflicted Damage . | . . . . Shots . | . . . . Rammed 12 | . . . 12 Targets Rammed 16 | . . . 16 Kicked 4 | . . . 4 Crushed . | . . . . Highest Temperature 368 | . 106 166 368 Average Temperature 103 | . 50 42 141 Received Heat Transfer 1014 | . 78 117 819 Effects 1 | . . . 1 Shutdowns 1 | . . . 1 Siege Activations . | . . . . Robots Corrupted . | . . . . Combat Hostiles . | . . . . Parts Fried . | . . . . Impact Corruptions . | . . . . Robots Melted . | . . . . Combat Hostiles . | . . . . Parts Melted 4 | . . . 4 Heat Transferred 1038 | . 150 . 888 Parts Sabotaged . | . . . . Parts Stolen . | . . . . Parts Stripped . | . . . . Power Chain Reactions 2 | . 2 . . Alert | -11 -10 -9 -8 ------- Run | Yrd Mat Mat Mat Peak Influence 195 | . 155 195 180 Initial 55 | . . 55 28 Average 86 | . 106 63 120 Maximum Alert Level . | . . . . Low Security (%) 100 | 100 100 100 100 Level 1 . | . . . . Level 2 . | . . . . Level 3 . | . . . . Level 4 . | . . . . Level 5 . | . . . . High Security . | . . . . Max Security . | . . . . Squads Dispatched . | . . . . Investigation . | . . . . Extermination . | . . . . Reinforcement . | . . . . Assault . | . . . . Garrison . | . . . . Intercept . | . . . . Searches Triggered . | . . . . Construction Impeded . | . . . . Haulers Reinforced . | . . . . Active Scanning Responses . | . . . . Cargo Convoy Interrupts . | . . . . Stealth | -11 -10 -9 -8 --------- Run | Yrd Mat Mat Mat Distress Signals 2 | . 1 . 1 Communications Jammed . | . . . . Distress Signals . | . . . . Times Spotted 46 | . 13 20 13 Peak Tracking Total 9 | . 5 9 7 Tactical Retreats 4 | . . 4 . Traps | -11 -10 -9 -8 ------- Run | Yrd Mat Mat Mat Traps Triggered 2 | . 2 . . Indirectly . | . . . . Trap Hack Attempts 4 | . 4 . . Triggered . | . . . . Disarmed . | . . . . Reprogrammed 1 | . 1 . . Reused . | . . . . Traps Extracted . | . . . . Installed . | . . . . Triggered . | . . . . Machines | -11 -10 -9 -8 ---------- Run | Yrd Mat Mat Mat Machines Disabled . | . . . . Max in Single Turn . | . . . . Machines Repaired . | . . . . Machines Dismantled . | . . . . Machines Sabotaged . | . . . . Overloaded Fab Kills . | . . . . Hacking | -11 -10 -9 -8 --------- Run | Yrd Mat Mat Mat Machines Accessed 3 | . . 3 . Terminals 2 | . . 2 . Fabricators . | . . . . Repair Stations . | . . . . Recycling Units 1 | . . 1 . Scanalyzers . | . . . . Garrison Access . | . . . . Total Hacks 6 | . . 6 . Successful 4 | . . 4 . Failed 2 | . . 2 . Catastrophic 1 | . . 1 . Database Lockouts . | . . . . Manual . | . . . . Terminals 4 | . . 4 . Fabricators . | . . . . Repair Stations . | . . . . Recycling Units 2 | . . 2 . Scanalyzers . | . . . . Garrison Access . | . . . . Terminal Hacks 3 | . . 3 . Record 2 | . . 2 . Alert Level 1 | . . 1 . Fabricator Hacks . | . . . . Repair Station Hacks . | . . . . Recycling Unit Hacks 1 | . . 1 . Report Inventory 1 | . . 1 . Scanalyzer . | . . . . Garrison Access Hacks . | . . . . Unauthorized Hacks . | . . . . Terminals . | . . . . Fabricators . | . . . . Repair Stations . | . . . . Recycling Units . | . . . . Scanalyzers . | . . . . Garrison Access . | . . . . Data Cores Recovered . | . . . . Used . | . . . . Hacking Detections 2 | . . 2 . Full Trace Events . | . . . . Feedback Events . | . . . . Feedback Blocked . | . . . . Robot Schematics Acquired . | . . . . Robots Built . | . . . . Authchips . | . . . . Time . | . . . . Total Robot Build Rating . | . . . . Part Schematics Acquired . | . . . . Parts Built . | . . . . Authchips . | . . . . Time . | . . . . Total Part Build Rating . | . . . . Parts Repaired . | . . . . Time . | . . . . Parts Recycled . | . . . . Recycled Matter . | . . . . Retrieved Matter . | . . . . Retrieved Components . | . . . . Parts Scanalyzed . | . . . . Part Schematics Acquired . | . . . . Parts Damaged . | . . . . Bothacking | -11 -10 -9 -8 ------------ Run | Yrd Mat Mat Mat Used RIF Installer . | . . . . Robots Hacked 3 | . 2 1 . Non-combat 3 | . 2 1 . Combat . | . . . . Robot Hacks Applied 3 | . 2 1 . parse_system 1 | . 1 . . no_distress 2 | . 1 1 . Relay Couplers Released . | . . . . Fabnet Peak Effective % . | . . . . Robots Rewired . | . . . . Allies Hacked . | . . . . Hacks Repelled . | . . . . Allies | -11 -10 -9 -8 -------- Run | Yrd Mat Mat Mat Total Allies . | . . . . Largest Group . | . . . . Highest-Rated Group . | . . . . Highest-Rated Ally . | . . . . Total Orders . | . . . . Ally Attacks . | . . . . Total Damage . | . . . . Kills . | . . . . Allies Corrupted . | . . . . Allies Melted . | . . . . Intel | -11 -10 -9 -8 ------- Run | Yrd Mat Mat Mat Robot Analysis Total . | . . . . Derelict Logs Recovered . | . . . . Drone Launches . | . . . . Drone Recoveries . | . . . . Exploration | -11 -10 -9 -8 ------------- Run | Yrd Mat Mat Mat Turns Passed 1475 | 52 311 678 434 Spaces Moved 460 | 37 128 223 72 Core 21 | 3 . . 18 Treads . | . . . . Legs 439 | 34 128 223 54 Wheels . | . . . . Hover . | . . . . Flight . | . . . . Fastest Speed 50 | 50 120 190 260 Average Speed 233 | 114 186 222 411 Slowest Speed 750 | 120 260 330 750 Overloaded Moves . | . . . . Propulsion Burnouts . | . . . . Robots Hopped . | . . . . Cave-ins Triggered . | . . . . Exploration Rate (%) 17 | 4 31 24 12 Regions Visited 3 Branch Regions . Pre-discovered Areas . | . . . . Known Exits Taken . | . . . . Unknown Exits Taken 3 | 1 1 1 . Scrap Searched . | . . . . Spaces Dug . | . . . . Terrain Destroyed 4 | . 4 . . Melee . | . . . . Projectile . | . . . . AOE 4 | . 4 . . Terrain Rammed . | . . . . Walls Destroyed . | . . . . Machines Disabled . | . . . . Actions | -11 -10 -9 -8 --------- Run | Yrd Mat Mat Mat Total 707 | 43 167 368 129 Wait 93 | . . 91 2 Move 457 | 36 127 222 72 Hop . | . . . . Pick Up 13 | 1 1 8 3 Fast Attach 16 | 6 5 4 1 Attach 6 | . . 2 4 Detach 2 | . . 1 1 Swap 3 | . 2 . 1 Drop 3 | . 2 . 1 Fire 91 | . 24 39 28 Melee 3 | . 2 1 . Ram 12 | . . . 12 Kick 4 | . . . 4 Crush . | . . . . Escape Stasis . | . . . . Rewire . | . . . . Trap 4 | . 4 . . Miscellaneous . | . . . . Route ------- -11/Scrapyard -10/Materials -9/Materials -8/Materials History --------- Turn | Location | Event 4 | -11/Scrapyard | Discovered new exit (range 15) 53 | -11/Scrapyard | Entered Materials 333 | -10/Materials | Build established: Mutant 334 | -10/Materials | Discovered new exit (range 13) 364 | -10/Materials | Entered another Materials area 364 | -9/Materials | Evolved 2 slots: Power x1, Utility x1 998 | -9/Materials | Discovered new exit (range 11) 1042 | -9/Materials | Entered another Materials area 1042 | -8/Materials | Evolved 2 slots: Propulsion x1, Weapon x1 1446 | -8/Materials | Core integrity fell below 50% 1465 | -8/Materials | Core integrity fell below 20% 1476 | -8/Materials | Lost 7 parts (2p2n1u2w) 1476 | -8/Materials | Destroyed by G-47 Trooper with Particle Gun Last Messages --------------- Beam Rifle destroyed. Imp. Ion Engine destroyed. G-50 Soldier destroyed. Lgt. Assault Rifle destroyed. Kicked G-47 Trooper. Deuterium Engine destroyed. Kicked G-47 Trooper. Kicked G-47 Trooper out of the way. Aluminum Leg destroyed. Kicked G-47 Trooper out of the way. Aluminum Leg destroyed. Critical hit (Burn: +37). Slammed into G-47 Trooper. Trap Scanner broken. Destabilizing: Short circuit. Slammed into G-47 Trooper. Broken Trap Scanner destroyed. Slammed into G-47 Trooper. Destabilizing: System interference. ECM Suite temporarily disabled. Map ----- +----------------------------------------------------+ | | | | | | | | | | | | | ?????????????????????????????????????????????????? | | ?????????????????????????????????????????????????? | | ?????????????????????????????????????????????????? | | ?????????????????????????????????????????????????? | | ?????????????????????????????????????????????????? | | ?????????????????????????????????????????????????? | | ?????????????????????????????????????????????????? | | ?????????????????????????????????????????????????? | | ?????????????????????????????????????????????????? | | ?????????????????????????????????????????????????? | | ?????????????????????????????????????????????????? | | ?????????????????????????????????????????????????? | | ?????????????????????????????????????????????????? | | ?????????????????????????????????????????????????? | | ???????????????????????????#+#???????????????????? | | ???????????????????????????# ####????????????????? | | ???????????????????????????# ?????????????????? | | ??????????????????########## ??????????????????? | | ??????????????????# %%# #??????????????????? | | ??????????????????# """"@g# #??????????????????? | | ??????????????????# """"%g# ^+??????????????????? | | ??????????????????# """" %+% #??????????????????? | | ??????????????????+ %#% #??????????????????? | | ??????????????????# """" !#% #??????????????????? | | ??????????????????# """" #% #??????????????????? | | ??????????????????#= """" + !#??????????????????? | | ?????????##???????# #=%######?????????????? | | ?????? ############ *## !#?????????????? | | ?????? %##### ! #?????????????? | | ?????????????######## "" !!#?????????????? | | ????????????????????# ##### T !!#?????????????? | | ????????????????????# #???# !!#?????????????? | | ????????????????????# #???###### !!#?????????????? | | ????????????????????# #????????#####?????????????? | | ????????????????????# #????????#######???????????? | | ????????????????????# #????????# #???????????? | | ????????????????????# #????????# #???????????? | | ????????????????????# #????????? +???????????? | | ???????#????????????# #????????? ????????????? | | ???????# ########## #????????? ????????????? | | ???????# #?????????# #????????????? | | ???????# #?????????# #????????????? | | ???????# #?????????# #????????????? | | ???????# ######## [ +?????????# #????????????? | +----------------------------------------------------+ Best States ------------- Heat Dissipation 31 Energy Generation 21 Energy Capacity 440 Matter Stores 300 Matter Capacity 300 Sight Range 16 Terrain Scan Density 10 ECM Strength 1 Resistance: KI 20 Resistance: TH 20 Resistance: EX 20 Resistance: EM 20 Resistance: I 20 Resistance: S 20 Resistance: P 20 Evasion (%) 55 Particle Charging 15 Offensive Hacking 10 Item Schematics ----------------- None Robot Schematics ------------------ None Fabricated ------------ Nothing Alien Tech Used ----------------- None Achievements -------------- Hehehe Challenges ------------ None Game ------ Seed HypervelocityAssaultScanner Manual? 0 Play Time 00:16:09 Cumulative 9.3 hours Start 2024.10.16 @ 18:52:22 End 2024.10.16 @ 20:24:34 Sessions 3 Manual Loads 0 Difficulty Adventurer Special Mode None Game No. 20 Rogue 0 Adventurer 20 Explorer 0 Win Type - Total 0 Types 0/0/0/0/0/0/0/0/0 Lore% 7 Gallery% 12 Achievement% 12 Wizard Run 0 Options --------- Layout 1 ASCII 0 Keyboard 0 Movement Mouse Keybinds 0 Fullscreen 1 Font 24/Smallcaps Map View 50x35 Zoom Use 0% Tactical HUD 0 Map Filters NONE Filters NONE Steam 1 RUN: 5c1af4a0-76e4-4b32-87f2-52e3c5551a84